{"text_format":"1","workbook":"xlsx","n_sheets":4,"sheets":["CivilPen-1","CivilPen-2","CivilPen-3","Data"],"not_rendered":{"charts":0,"images":1,"macros":1,"external_links":0,"defined_names":3,"comments":0,"pivot_tables":0},"unopened":[],"bounds":{"document_bytes":16777216,"sheet_cells":100000,"rows_first":2000,"rows_last":500,"rows_between":2000,"halvings":0,"cell_chars":16384,"cell_head_chars":4096},"cells_cut":0,"cells_raw":0,"read":"whole","date_system":"1900"}

{"sheet":"CivilPen-1","index":0,"n_rows":32,"n_cols":14,"rows_kept":32,"cut":false,"hidden":false,"merged":[[20,0,20,1],[5,1,7,1],[10,0,10,2],[11,0,11,1],[14,0,14,1],[17,0,17,1]]}
[null,"Violation Summary"]
["Alleged Violator:","Generic Oil Company, LLC"]
["Violation Date:","2020-03-11",null,null,null,"User selection fields",null,null,null,null,null,null,null,"<-- This will reset all fields"]
["Citation","Description","MinPA($)",null,null,"User input fields"]
["10 (Cond. 1)",{"$f":"_xlfn.XLOOKUP($A$5,Data!$A$2:$A$158,Data!$B$2:$B$158)","v":"(Cond. 1) fail to remove rubbish or debris"},{"$f":"_xlfn.XLOOKUP('CivilPen-1'!$A$5,Data!$A$2:$A$158,Data!$C$2:$C$158)","v":250},null,null,"Automatically generated fields"]
["Basis:","API: 30-015-xxxx, Well: Generic 4 State 1H                                                                                               Site inspected on March 1. Generic Oil Company, LLC. notified by e-mail on March 1.  Reinspected site on March 11, no change observed."]
[]
[null,null,null,null,null,null,"<-- This will create a blank copy for calculating an additional violation for the same alleged violator(assumes same violation date, operator)"]
[null,"Days:",10]
[null,"Penalty Subtotal:",{"$f":"$C$9*$C$5","v":2500}]
["Adjustment Factors"]
["Effort to Comply:",null,"Factor"]
[null,"No Cooperation or Compliance",{"$f":"_xlfn.XLOOKUP($B$13,Data!$B$161:$B$165,Data!$C$161:$C$165)","v":0.6}]
["Comments:"]
["History of Non-Compliance:"]
[null,"No history",{"$f":"_xlfn.XLOOKUP($B$16,Data!$B$168:$B$171,Data!$C$168:$C$171)","v":0}]
["Comments:"]
["Negligence and Willfulness:"]
[null,"Negligence",{"$f":"_xlfn.XLOOKUP($B$19,Data!$B$174:$B$177,Data!$C$174:$C$177)","v":0.2}]
["Comments:"]
["Economic Impact:"]
[null,"More than 500 wells or gross sales more than $10,000,000",{"$f":"_xlfn.XLOOKUP($B$22,Data!$B$180:$B$183,Data!$C$180:$C$183)","v":0.6}]
["Comments:"]
[null,"Factor Subtotal:",{"$f":"SUM(C13,C16,C19,C22)+1","v":2.4}]
[null,"Outstanding Conditions","MaxPA($)/day"]
[null,"No outstanding conditions",{"$f":"_xlfn.XLOOKUP(B26,Data!B187:B189,Data!C187:C189)","v":2500},"<--- Maximum allowable penalty per day after adjustment factors"]
[null,"Total Penalty= ",{"$f":"IF(IF(($C$24*$C$10)/$C$9>$C$26,$C$26*C9,$C$24*$C$10)>Data!C191, Data!C191, IF(($C$24*$C$10)/$C$9>$C$26,$C$26*C9,$C$24*$C$10))","v":6000},"<--- Total penalty not to exceed $200,000"]
[]
[]
[]
[]
[{"$f":"MID(CELL(\"filename\",A1),FIND(\"]\",CELL(\"filename\",A1))+1,256)","v":"CivilPen-1"},"Processed:",{"$f":"NOW()","v":"2021-05-18T16:08:39.950"},"<---make sure the processed date field refreshes, click on it and hit 'enter' if needed"]

{"sheet":"CivilPen-2","index":1,"n_rows":32,"n_cols":14,"rows_kept":32,"cut":false,"hidden":false,"merged":[[20,0,20,1],[5,1,7,1],[10,0,10,2],[11,0,11,1],[14,0,14,1],[17,0,17,1]]}
[null,"Violation Summary"]
["Alleged Violator:","Generic Oil Company, LLC"]
["Violation Date:","2020-03-11",null,null,null,"User selection fields",null,null,null,null,null,null,null,"<-- This will reset all fields"]
["Citation","Description","MinPA($)",null,null,"User input fields"]
["5.9(A)(4)(a)",{"$f":"_xlfn.XLOOKUP($A$5,Data!$A$2:$A$158,Data!$B$2:$B$158)","v":"each inactive well exceeding the threshold"},{"$f":"_xlfn.XLOOKUP('CivilPen-2'!$A$5,Data!$A$2:$A$158,Data!$C$2:$C$158)","v":250},null,null,"Automatically generated fields"]
["Basis:","API: 30-015-xxxx, Well: Generic 16 State 4H                                                                                             Inactive Well"]
[]
[null,null,null,null,null,null,"<-- This will create a blank copy for calculating an additional violation for the same alleged violator(assumes same violation date, operator)"]
[null,"Days:",1]
[null,"Penalty Subtotal:",{"$f":"$C$9*$C$5","v":250}]
["Adjustment Factors"]
["Effort to Comply:",null,"Factor"]
[null,"Cooperation and Compliance",{"$f":"_xlfn.XLOOKUP($B$13,Data!$B$161:$B$165,Data!$C$161:$C$165)","v":0}]
["Comments:"]
["History of Non-Compliance:"]
[null,"Same or similar requirement",{"$f":"_xlfn.XLOOKUP($B$16,Data!$B$168:$B$171,Data!$C$168:$C$171)","v":0.4}]
["Comments:","Generic Oil Company, LLC has previous violations"]
["Negligence and Willfulness:"]
[null,"None",{"$f":"_xlfn.XLOOKUP($B$19,Data!$B$174:$B$177,Data!$C$174:$C$177)","v":0}]
["Comments:"]
["Economic Impact:"]
[null,"101-500 wells or gross sales between $5,000,000-$10,000,000",{"$f":"_xlfn.XLOOKUP($B$22,Data!$B$180:$B$183,Data!$C$180:$C$183)","v":0.4}]
["Comments:"]
[null,"Factor Subtotal:",{"$f":"SUM(C13,C16,C19,C22)+1","v":1.8}]
[null,"Outstanding Conditions","MaxPA($)/day"]
[null,"No outstanding conditions",{"$f":"_xlfn.XLOOKUP(B26,Data!B187:B189,Data!C187:C189)","v":2500},"<--- Maximum allowable penalty per day after adjustment factors"]
[null,"Total Penalty= ",{"$f":"IF(IF(($C$24*$C$10)/$C$9>$C$26,$C$26*C9,$C$24*$C$10)>Data!C191, Data!C191, IF(($C$24*$C$10)/$C$9>$C$26,$C$26*C9,$C$24*$C$10))","v":450},"<--- Total penalty not to exceed $200,000"]
[]
[]
[]
[]
[{"$f":"MID(CELL(\"filename\",A1),FIND(\"]\",CELL(\"filename\",A1))+1,256)","v":"CivilPen-2"},"Processed:",{"$f":"NOW()","v":"2021-05-18T16:08:39.950"},"<---make sure the processed date field refreshes, click on it and hit 'enter' if needed"]

{"sheet":"CivilPen-3","index":2,"n_rows":32,"n_cols":14,"rows_kept":32,"cut":false,"hidden":false,"merged":[[20,0,20,1],[5,1,7,1],[10,0,10,2],[11,0,11,1],[14,0,14,1],[17,0,17,1]]}
[null,"Violation Summary"]
["Alleged Violator:"]
["Violation Date:",null,null,null,null,"User selection fields",null,null,null,null,null,null,null,"<-- This will reset all fields"]
["Citation","Description","MinPA($)",null,null,"User input fields"]
[null,{"$f":"_xlfn.XLOOKUP($A$5,Data!$A$2:$A$158,Data!$B$2:$B$158)","v":{"$error":"#N/A"}},{"$f":"_xlfn.XLOOKUP('CivilPen-3'!$A$5,Data!$A$2:$A$158,Data!$C$2:$C$158)","v":{"$error":"#N/A"}},null,null,"Automatically generated fields"]
["Basis:"]
[]
[null,null,null,null,null,null,"<-- This will create a blank copy for calculating an additional violation for the same alleged violator(assumes same violation date, operator)"]
[null,"Days:"]
[null,"Penalty Subtotal:",{"$f":"$C$9*$C$5","v":{"$error":"#N/A"}}]
["Adjustment Factors"]
["Effort to Comply:",null,"Factor"]
[null,null,{"$f":"_xlfn.XLOOKUP($B$13,Data!$B$161:$B$165,Data!$C$161:$C$165)","v":{"$error":"#N/A"}}]
["Comments:"]
["History of Non-Compliance:"]
[null,null,{"$f":"_xlfn.XLOOKUP($B$16,Data!$B$168:$B$171,Data!$C$168:$C$171)","v":{"$error":"#N/A"}}]
["Comments:"]
["Negligence and Willfulness:"]
[null,null,{"$f":"_xlfn.XLOOKUP($B$19,Data!$B$174:$B$177,Data!$C$174:$C$177)","v":{"$error":"#N/A"}}]
["Comments:"]
["Economic Impact:"]
[null,null,{"$f":"_xlfn.XLOOKUP($B$22,Data!$B$180:$B$183,Data!$C$180:$C$183)","v":{"$error":"#N/A"}}]
["Comments:"]
[null,"Factor Subtotal:",{"$f":"SUM(C13,C16,C19,C22)+1","v":{"$error":"#N/A"}}]
[null,"Outstanding Conditions","MaxPA($)/day"]
[null,null,{"$f":"_xlfn.XLOOKUP(B26,Data!B187:B189,Data!C187:C189)","v":{"$error":"#N/A"}},"<--- Maximum allowable penalty per day after adjustment factors"]
[null,"Total Penalty= ",{"$f":"IF(IF(($C$24*$C$10)/$C$9>$C$26,$C$26*C9,$C$24*$C$10)>Data!C191, Data!C191, IF(($C$24*$C$10)/$C$9>$C$26,$C$26*C9,$C$24*$C$10))","v":{"$error":"#N/A"}},"<--- Total penalty not to exceed $200,000"]
[]
[]
[]
[]
[{"$f":"MID(CELL(\"filename\",A1),FIND(\"]\",CELL(\"filename\",A1))+1,256)","v":"CivilPen-3"},"Processed:",{"$f":"NOW()","v":"2021-05-18T16:08:39.950"},"<---make sure the processed date field refreshes, click on it and hit 'enter' if needed"]

{"sheet":"Data","index":3,"n_rows":191,"n_cols":3,"rows_kept":191,"cut":false,"hidden":true,"merged":[]}
["CITATION","DESCRIPTION","AMOUNT ($)"]
["5.9(A)(4)(a)","each inactive well exceeding the threshold",250]
["5.9(A)(4)(b)","each inactive well exceeding the threshold",500]
["5.9(A)(4)(c)","each inactive well exceeding the threshold",500]
["5.9(A)(4)(d)","each inactive well exceeding the threshold",1000]
["5.11 ($250)","fail to comply with term, condition, or provision of a permit, administrative order, authorization, or approval",250]
["5.11 ($500)","fail to comply with term, condition, or provision of a permit, administrative order, authorization, or approval",500]
["5.11 ($1000)","fail to comply with term, condition, or provision of a permit, administrative order, authorization, or approval",1000]
["5.11 ($2500)","fail to comply with term, condition, or provision of a permit, administrative order, authorization, or approval",2500]
[7.8,"fail to keep books and records",500]
[7.11,"fail to obtain OCD approval",1000]
["7.13(C)","fail to submit amended form",250]
["7.14 to 7.42 (Cond. 1)","(Cond. 1) fail to file C-115 (see 7.24) fail to file other form or obtain approval, as applicable",1000]
["7.14 to 7.42 (Cond. 2)","(Cond. 2) fail to file other form or obtain approval, as applicable",500]
[8.9,"fail to provide financial assurance per well",250]
[8.16,"fail to report notice of bankruptcy filing",1000]
[9.8000000000000007,"fail to register as operator",2500]
["9.8(C)","fail to change address or contact information of operator",1000]
["9.9(A)","fail to file C-145",1000]
["9.9(B)","commence operation before approval of C-145",1000]
["9.10(B)","fail to file C-146",500]
["10 (Cond. 1)","(Cond. 1) fail to remove rubbish or debris",250]
["10 (Cond. 2)","(Cond. 2) fail to comply with other safety procedure",1000]
[11,"fail to comply requirement related to hydrogen sulfide gas",2500]
[12.9,"commingling without OCD approval",1000]
["14.8(A)","fail to obtain permit to drill, deepen, or re-enter a well",2500]
["16.8 (Cond. 1)","(Cond. 1) fail to post sign",500]
["16.8 (Cond. 2)","(Cond. 2) fail to change operator name on sign",500]
["16.8 (Cond. 3)","(Cond. 3) fail to comply with other requirement",250]
[16.899999999999999,"fail to comply with requirement related to sealing off strata",1000]
["16.1 (Cond. 1)","(Cond. 1) fail to comply with subsection (A) for casing and tubing well",1000]
["16.1 (Cond. 2)","(Cond. 2) fail to comply with subsections (B)-(J)",500]
["16.1 (Cond. 3)","(Cond. 3) fail to file C-103",250]
[16.11,"fail to report defective casing or cementing",2500]
[16.12,"fail to comply with requirement related to blowout prevention",1000]
[16.13,"fail to comply with requirement related to pulling casing",1000]
["16.14 (Cond. 1)","(Cond. 1) fail to obtain approval for unorthodox well location",500]
["16.14 (Cond. 2)","(Cond. 2) fail to obtain permit to directionally drill",500]
["16.14 (Cond. 3)","(Cond. 3) fail to test vertical or deviated well",500]
["16.14 (Cond. 4)","(Cond. 4) fail to comply with other requirement related to well bores",250]
["16.15 (Cond. 1)","(Cond. 1) construct a horizontal well that does not comply with setbacks",1000]
["16.15 (Cond. 2)","(Cond. 2) drill well that is projected to violate setback without OCD approval",500]
["16.15 (Cond. 3)","(Cond. 3) produce well drilled at unorthodox location without OCD approval",500]
["16.15 (Cond. 4)","(Cond. 4) fail to submit directional survey",250]
["16.16 (Cond. 1)","(Cond. 1) fail to obtain OCD approval before well completion",500]
["16.16 (Cond. 2)","(Cond. 2) fail to obtain OCD approval before producing from Bradenhead gas well",500]
[16.170000000000002,"fail to report waste or injury to formations, intervals, casing, or casing seals",1000]
[16.18,"fail to comply with requirement related to well and lease equipment",500]
[16.190000000000001,"fail to file log, or completion or workover report, or FracFocus disclosure",1000]
["17.8 (Cond. 1)","(Cond. 1) construct or use pit without permit",1000]
["17.8 (Cond. 2)","(Cond. 2) fail to register below-grade tank",500]
["17.9 to 17.14 (Cond. 1)","(Cond. 1) fail to comply with requirement related to siting, design, construction, operation, closure, reclamation, or emergency action for a pit, closed-loop system, below-grade tank, or sump, except as provided below",1000]
["17.9 to 17.14 (Cond. 2)","(Cond. 2) fail to provide notice or maintain record",500]
["17.9 to 17.14 (Cond. 3)","(Cond. 3) fail to comply with sign requirement",500]
[18.8,"fail to comply with requirement related to gas-oil ratio or production test",250]
[18.899999999999999,"fail to comply with requirement related to bottom-hole pressure test",250]
[18.100000000000001,"fail to segregate common sources of supply",500]
[18.11,"fail to meter and report casinghead gas",250]
["18.12 (Cond. 1)","(Cond. 1) vent or flare casinghead gas after 60 days following well completion without OCD approval",1000]
["18.12 (Cond. 2)","(Cond. 2) fail to meter and report casinghead gas produced, sold, transported, or burned",500]
[18.13,"fail to comply with requirement related to operation at below atmospheric pressure",500]
[18.14,"fail to report produced water",500]
["18.15 (Cond. 1)","(Cond. 1) use or accept delivery of oil through automatic custody transfer equipment without OCD approval",500]
["18.15 (Cond. 2)","(Cond. 2) fail to comply with other requirement related to automatic custody transfer equipment",500]
["18.16 (Cond. 1)","fail to post sign for oil or other tanks, tank battery, or automatic custody transfer equipment",250]
["18.16 (Cond. 2)","fail to comply with other requirement regarding signs",250]
["18.16 (Cond. 3)","fail to comply with other requirement related to oil storage or retention",500]
["18.17 (Cond. 1)","clean sediment tank, remove sediment oil from lease, or destroy sediment oil without OCD approval",1000]
["18.17 (Cond. 2)","fail to test representative sample of sediment oil prior to transport or commingling",500]
["18.17 (Cond. 3)","fail to report sediment oil removed from storage",250]
["18.17 (Cond. 4)","fail to report emergency requiring delivery of miscellaneous hydrocarbons to treating plant or other facility ",250]
["18.19 (Cond. 1)","waste of economically salvageable drip",1000]
["18.19 (Cond. 2)","fail to file C-104 or plat before moving and selling drip",250]
["18.19 (Cond. 3)","fail to keep records record and maintain C-112 showing amount, source, and disposition of drip handled each month",250]
["18.19 (Cond. 4)","fail to file map of gas gathering and transportation system",500]
["19.8 (Cond. 1)","fail to report gas well test",250]
["19.8 (Cond. 2)","fail to test gas well in accordance with procedure in manual",250]
["19.8 (Cond. 3)","fail to meter or report produced gas",250]
["19.8 (Cond. 4)","fail to report well volume",250]
["19.8 (Cond. 5)","fail to report disconnection of well from transportation facility",250]
["20.9 (Cond. 1)","produce unit in excess of allowable plus tolerance",500]
["20.9 (Cond. 2)","fail to report oil in lease storage in excess of 5 days allowable plus rerun allowable",250]
["20.9 (Cond. 3)","fail to maintain record of unrun allowable in lease storage",250]
[20.11,"sell oil produced during completion, recompletion, or testing of well without OCD approval",500]
[20.149999999999999,"fail to report recovered load oil",250]
["21.13 (Cond. 1)","produce gas well after shut-in for purpose other than test",500]
["21.13 (Cond. 2)","fail to conduct test",250]
[22.12,"produce hardship gas well without OCD approval",250]
["23.8 (Cond. 1)","transport oil off-lease without OCD approval",1000]
["23.8 (Cond. 2)","transport oil off-lease without documentation",1000]
[25.8,"fail to properly plug and abandon or approved temporarily abandon well",1000]
[25.9,"fail to give notice related to plugging well",500]
[25.1,"fail to comply with requirement related to plugging well",1000]
[25.11,"fail to report plugging well",500]
[25.13,"commence temporary abandonment procedure without OCD approval",500]
[25.14,"fail to comply with requirement related to mechanical integrity test",500]
[26.8,"inject produced water or other fluids without permit",2500]
[26.9,"fail to prevent leakage from injection well",1000]
[26.1,"fail to comply with requirement related to operation and maintenance of injection well",1000]
[26.11,"fail to comply with requirement related to test of injection well",500]
[26.12,"fail to comply with requirement related to commencement, discontinuance, or abandonment of injection well",250]
[26.13,"fail to report regarding injection well",250]
[29.8,"fail to comply with requirement related to release",1000]
["29.9 to 29.10 (Cond. 1)","fail to file C-141 for release",2500]
["29.9 to 29.10 (Cond. 2)","fail to send C-141 for release to land management agency",1000]
["29.11 (Cond. 1)","fail to submit release characterization",1000]
["29.11 (Cond. 2)","fail to submit additional information requested by OCD",500]
["29.12 (Cond. 1)","fail to submit remediation plan",1000]
["29.12 (Cond. 2)","fail to comply with remediation plan",1000]
["29.12 (Cond. 3)","fail to submit C-141 for closure",500]
["29.12 (Cond. 4)","fail to notify OCD before final sampling",250]
["29.12 (Cond. 5)","fail to comply with other requirement related to closure",1000]
["29.12 (Cond. 6)","fail to notify OCD regarding completion of reclamation or revegetation",250]
["29.12 (Cond. 7)","fail to comply with other requirement related to restoration, reclamation, or revegetation",1000]
["30.11 (Cond. 1)","fail to comply with abatement plan",1000]
["30.11 (Cond. 2)","fail to submit financial assurance for abatement of facility operating under discharge plan",500]
["30.11 (Cond. 3)","fail to give notice to transferee and OCD",250]
[30.13,"fail to submit abatement plan",1000]
[30.14,"fail to allow OCD to enter facility, collect samples, inspect or copy records, or inspect works or equipment",2500]
["34.8 & 34.20","dispose produced water or oil field waste in a manner not authorized by OCD rules",2500]
["34.9 (Cond. 1)","fail to register or permit a recycling facility",1000]
["34.9 (Cond. 2)","fail to keep accurate records",500]
["34.9 (Cond. 3)","fail to file C-148 for volumes of water",250]
["34.9 (Cond. 4)","fail to remove all fluids after cessation of operation",1000]
["34.10 (Cond. 1)","fail to register recycling containment",2500]
["34.10 (Cond. 2)","operate without valid registration",1000]
["34.10 (Cond. 3)","fail to comply with requirement for siting, design, construction, operation, closure, reclamation, and financial assurance",1000]
["34.17 (Cond. 1)","transport produced water, drilling fluid, or liquid oilfield waste without C-133 approved by OCD",2500]
["34.17 (Cond. 2)","fail to maintain copy of approved C-133 in transporting vehicle",1000]
["34.17 (Cond. 3)","allow removal of produced water, drilling fluid, or liquid oilfield waste from lease or field facility by person not possessing approved C-133",1000]
[34.21,"fail to comply with notice to remove recycling facility or recycling containment",1000]
[35.799999999999997,"dispose certain oil field waste without OCD approval",1000]
["35.1 (Cond. 1)","abandon pipeline containing NORM without OCD approval",1000]
["35.1 (Cond. 2)","fail to notify OCD prior to abandoning pipeline",500]
[35.11,"dispose NORM in commercial or centralized surface waste facility without OCD approval",1000]
["35.12 & 13 (Cond. 1)","dispose NORM in well without OCD approval",1000]
["35.12 & 13 (Cond. 2)","fail to comply with requirement for disposing NORM",1000]
[36.799999999999997,"operate a surface waste management facility without permit",2500]
["36.11 (Cond. 1)","fail to maintain financial assurance",1000]
["36.11 (Cond. 2)","fail to notice regarding changes affecting financial assurance",500]
["36.11 (Cond. 3)","fail to report notice of bankruptcy filing",1000]
["36.13 (Cond. 1)","fail to comply with requirement related to records or signs at surface waste management facility",250]
["36.13 (Cond. 2)","fail to comply with other requirement ",1000]
[36.14,"fail to comply with requirement for landfill",1000]
[36.15,"fail to comply with requirement for landfarm",1000]
["36.16 (Cond. 1)","fail to register small landfarm",1000]
["36.16 (Cond. 2)","fail to comply with requirement related to records or signs",500]
["36.16 (Cond. 3)","fail to comply with other requirement",1000]
[36.17,"fail to comply with requirement for evaporation, storage, treatment, or skimmer pond",1000]
["36.18 (Cond. 1)","fail to comply with notice regarding closure",250]
["36.18 (Cond. 2)","fail to comply with other requirement related to closure",1000]
[37.799999999999997,"fail to file C-113 (refinery)",250]
[37.9,"fail to file C-111 (gasoline, cycling, or other plant)",250]
[39,"fail to comply with requirement",500]
["Other($250)","(admin) any violation not specified in Appendix A",250]
["Other ($500)","(Minor) any violation not specified in Appendix A",500]
["Other($1000)","(Moderate) any violation not specified in Appendix A",1000]
["Other ($2500)","(Severe) any violation not specified in Appendix A",2500]
[]
[null,"EFFORT TO COMPLY"]
[null,"Self-Reported Violation",-0.4]
[null,"Compliance Prior to NOV Deadline",-0.2]
[null,"Cooperation and Compliance",0]
[null,"Minimal Cooperation and Compliance",0.3]
[null,"No Cooperation or Compliance",0.6]
[]
[null,"HISTORY OF NONCOMPLIANCE"]
[null,"No history",0]
[null,"Different requirement",0.2]
[null,"Same or similar requirement",0.4]
[null,"Substantial history",0.6]
[]
[null,"NEGLIGENCE AND WILLFULNESS"]
[null,"None",0]
[null,"Negligence",0.2]
[null,"Gross Negligence",0.4]
[null,"Probable or Actual Willfulness",0.6]
[]
[null,"ECONOMIC IMPACT"]
[null,"Less than 50 wells or gross sales less than $500,000",0]
[null,"51-100 wells or gross sales between $500,000-$5,000,000",0.2]
[null,"101-500 wells or gross sales between $5,000,000-$10,000,000",0.4]
[null,"More than 500 wells or gross sales more than $10,000,000",0.6]
[]
[]
[null,"Outstanding Conditions"]
[null,"No outstanding conditions",2500]
[null,"Violation presents a risk to public health or safety; may cause significant enviromental harm",10000]
[null,"Noncompliance exceeds time specified in notice of violation",10000]
[]
[null,"Violation shall not exceed:",200000]